bitfinex-derivatives/quotes_BTCF0:USTF0_20250509
["timestamp","ask_amount","ask_price","bid_price","bid_amount"]
[1746779260146,0.25536258,103930.0,103910.0,0.2405409]
[1746779260447,0.59305441,103930.0,103920.0,0.0345]
[1746779260652,0.59305441,103930.0,103920.0,0.04689407]
[1746779260852,0.58342601,103930.0,103920.0,0.06195708]
[1746779261052,0.58342601,103930.0,103920.0,0.35059793]
[1746779261349,0.22262601,103930.0,103920.0,0.51059793]
[1746779261657,0.3415758,103930.0,103920.0,0.2219479]
[1746779261951,0.22262601,103930.0,103920.0,0.2219479]
[1746779262255,0.5015758,103930.0,103920.0,0.0619479]
[1746779262460,0.74442601,103930.0,103920.0,0.0639479]
[1746779262954,0.74442601,103930.0,103920.0,0.2563747]
[1746779262955,0.74642601,103930.0,103920.0,0.2563747]
[1746779263148,0.58542601,103930.0,103920.0,0.0619479]
[1746779263356,0.59042601,103930.0,103920.0,0.0629479]
[1746779263862,0.7093758,103930.0,103920.0,0.0273479]
[1746779264153,0.78642601,103930.0,103920.0,0.0273479]
[1746779265253,0.62642601,103930.0,103920.0,0.0273479]
[1746779265454,0.6148693,103930.0,103920.0,0.0273479]
[1746779265765,0.6118693,103930.0,103920.0,0.0273479]
[1746779266654,0.73081909,103930.0,103920.0,0.0273479]
[1746779266850,0.1924453,103910.0,103900.0,0.0346]
[1746779267063,0.5532453,103910.0,103900.0,0.0346]
[1746779267366,0.9475453,103910.0,103900.0,0.0346]
[1746779267557,0.1924639,103900.0,103890.0,0.03712511]
[1746779267858,0.1924639,103900.0,103890.0,0.03532511]
[1746779267859,0.6107321,103900.0,103890.0,0.03532511]
[1746779268054,0.72968189,103900.0,103890.0,0.00192511]
[1746779268250,0.7707321,103900.0,103890.0,0.00192511]
[1746779268563,0.88968189,103900.0,103890.0,0.00192511]
[1746779268759,0.7707321,103900.0,103890.0,0.00192511]
[1746779268954,0.98593389,103900.0,103890.0,0.00192511]
[1746779269156,0.1925009,103880.0,103870.0,0.14724514]
[1746779269362,0.9141009,103880.0,103870.0,0.14724514]
[1746779269558,0.1925194,103870.0,103860.0,0.19657803]
[1746779269760,0.82471898,103870.0,103860.0,0.00101097]
[1746779269959,0.1925565,103850.0,103840.0,0.37429887]
[1746779270159,0.9141565,103850.0,103840.0,0.37429887]
[1746779270361,1.09960629,103850.0,103840.0,0.37429887]
[1746779270557,0.9806565,103850.0,103840.0,0.37429887]
[1746779271051,1.09960629,103850.0,103840.0,0.37429887]
[1746779271255,0.9806565,103850.0,103840.0,0.56687397]
[1746779271454,1.09960629,103850.0,103840.0,0.37429887]
[1746779271855,0.9806565,103850.0,103840.0,0.37429887]
[1746779272261,1.13658814,103850.0,103840.0,0.0364]
[1746779272563,0.4283,103850.0,103840.0,0.2309751]
[1746779272757,0.001,103850.0,103840.0,0.6204751]
[1746779272962,0.1945565,103850.0,103840.0,0.6204751]
[1746779273162,0.1945565,103850.0,103840.0,0.7804751]
[1746779273363,0.2578565,103850.0,103840.0,0.7784751]
[1746779273661,0.6226565,103850.0,103840.0,0.4186751]
[1746779273969,0.6216565,103850.0,103840.0,0.4216751]
[1746779274270,0.6176565,103850.0,103840.0,0.4206751]
[1746779274463,0.6196565,103850.0,103840.0,0.4216751]
[1746779275257,0.2588565,103850.0,103840.0,0.4216751]
[1746779275567,0.2588565,103850.0,103840.0,0.4196751]
[1746779276063,0.6196565,103850.0,103840.0,0.4196751]
[1746779276463,0.6196565,103850.0,103840.0,0.57560674]
[1746779276664,0.6196565,103850.0,103840.0,0.4196751]
[1746779276959,0.002,103850.0,103840.0,1.0327041]
[1746779277361,0.002,103850.0,103840.0,0.87677246]
[1746779277671,0.002,103850.0,103840.0,0.51597246]
[1746779277867,0.002,103850.0,103840.0,0.6719041]
[1746779278671,0.002,103850.0,103840.0,1.0327041]
[1746779278872,0.002,103850.0,103840.0,0.88806467]
[1746779279069,0.002,103850.0,103840.0,0.88806392]
[1746779279269,0.002,103850.0,103840.0,1.04399556]
[1746779280168,0.002,103850.0,103840.0,0.88806392]
[1746779281566,0.002,103850.0,103840.0,1.04399556]
[1746779282073,0.002,103850.0,103840.0,1.13929156]
[1746779282265,0.002,103850.0,103840.0,1.14229156]
[1746779282465,0.002,103850.0,103840.0,0.98635992]
[1746779282664,0.002,103850.0,103840.0,0.89006392]
[1746779282870,0.1925565,103850.0,103840.0,0.62554912]
[1746779283069,0.1925565,103850.0,103840.0,0.52925176]
[1746779283265,0.2609565,103850.0,103840.0,0.47810806]
[1746779283464,0.2609565,103850.0,103840.0,0.84290806]
[1746779283663,0.2609565,103850.0,103840.0,0.48210806]
[1746779283863,0.2619565,103850.0,103840.0,0.48310806]
[1746779284066,0.77868814,103850.0,103840.0,0.05069146]
[1746779284270,0.6557565,103850.0,103840.0,0.05069146]
[1746779284469,0.81168814,103850.0,103840.0,0.01729146]
[1746779284674,0.81068814,103850.0,103840.0,0.01529146]
[1746779284973,0.6557565,103850.0,103840.0,0.006]
[1746779285369,0.81168814,103850.0,103840.0,0.006]
[1746779285775,0.6557565,103850.0,103840.0,0.006]
[1746779285970,0.6557565,103850.0,103840.0,0.002]
[1746779286171,0.6557565,103850.0,103840.0,0.2261751]
[1746779286172,0.6577565,103850.0,103840.0,0.2261751]
[1746779286574,0.6577565,103850.0,103840.0,0.27186878]
[1746779286982,0.2959565,103850.0,103840.0,0.26986878]
[1746779287277,0.6577565,103850.0,103840.0,0.42986878]
[1746779287779,0.2969565,103850.0,103840.0,0.42986878]
[1746779288278,0.001,103850.0,103840.0,0.94660042]
[1746779288672,0.1935565,103850.0,103840.0,0.79066878]
[1746779288872,0.1935565,103850.0,103840.0,0.94660042]
[1746779289083,0.1935565,103850.0,103840.0,0.79066878]
[1746779289476,0.001,103850.0,103840.0,0.88696614]
[1746779289672,0.56460425,103880.0,103870.0,0.1925194]
[1746779289879,0.1925194,103870.0,103860.0,0.6495892]
[1746779290075,0.1925194,103870.0,103860.0,0.82087971]
[1746779290480,0.58397685,103880.0,103870.0,0.1925194]
[1746779290481,0.62224714,103880.0,103870.0,0.1925194]
[1746779290786,0.00144484,103880.0,103870.0,0.35974105]
[1746779290982,0.19394574,103880.0,103870.0,0.23740941]
[1746779291282,0.19634574,103880.0,103870.0,0.39740941]
[1746779291586,0.78067738,103880.0,103870.0,0.17128926]
[1746779291883,0.78067738,103880.0,103870.0,0.17128965]
[1746779292183,0.78067738,103880.0,103870.0,0.01328989]
[1746779292483,0.62474574,103880.0,103870.0,0.20580929]
[1746779292783,0.62674574,103880.0,103870.0,0.01128989]
[1746779292980,0.62674574,103880.0,103870.0,0.20380929]
[1746779293485,0.62874574,103880.0,103870.0,0.01128989]
[1746779294486,0.78467738,103880.0,103870.0,0.01128989]
[1746779294984,0.62874574,103880.0,103870.0,0.01128989]
[1746779295186,0.78467738,103880.0,103870.0,0.01128989]
[1746779295377,0.62874574,103880.0,103870.0,0.20380929]
[1746779295584,0.56114574,103880.0,103870.0,0.20380929]
[1746779295786,0.56114574,103880.0,103870.0,0.23580943]
[1746779296186,0.56114574,103880.0,103870.0,0.39580943]
[1746779296787,0.56114574,103880.0,103870.0,0.39780943]
[1746779296788,0.55914574,103880.0,103870.0,0.39780943]
[1746779297185,0.55714574,103880.0,103870.0,0.39780943]
[1746779297485,0.55814574,103880.0,103870.0,0.40080943]
[1746779297990,0.55814574,103880.0,103870.0,0.41586223]
[1746779298181,0.55814574,103880.0,103870.0,0.41386223]
[1746779298990,0.55714574,103880.0,103870.0,0.41086223]
[1746779299290,0.19634574,103880.0,103870.0,0.77266223]
[1746779299586,0.00384484,103880.0,103870.0,0.77266223]
[1746779299787,0.19634574,103880.0,103870.0,0.77266223]
[1746779300086,0.00384484,103880.0,103870.0,0.77266223]
[1746779300390,0.2886864,103910.0,103900.0,0.1924639]
[1746779300584,0.3414707,103910.0,103900.0,0.20375393]
[1746779300889,0.35112676,103910.0,103900.0,0.56455026]
[1746779301290,0.2933584,103910.0,103900.0,0.56455026]
[1746779301589,0.2896572,103920.0,103910.0,0.1924453]
[1746779301778,0.3932572,103920.0,103910.0,0.20373166]
[1746779301979,0.3932572,103920.0,103910.0,0.02633916]
[1746779302483,0.3932572,103920.0,103910.0,0.21878446]
[1746779302991,0.2980399,103920.0,103910.0,0.21878446]
[1746779303190,0.2980399,103920.0,103910.0,0.25168446]
[1746779303582,0.002,103920.0,103910.0,0.25168446]
[1746779303784,0.002,103920.0,103910.0,0.64478446]
[1746779304077,0.1944268,103920.0,103910.0,0.80478446]
[1746779304279,0.002,103920.0,103910.0,0.80478446]
[1746779304581,0.002,103920.0,103910.0,0.90101695]
[1746779304781,0.002,103920.0,103910.0,0.93471695]
[1746779305493,0.002,103920.0,103910.0,1.0904158]
[1746779305793,0.002,103920.0,103910.0,1.6063158]
[1746779305988,0.0024,103930.0,103920.0,0.1924268]
[1746779306191,0.0024,103930.0,103920.0,0.79220894]
[1746779306380,0.0024,103930.0,103920.0,0.80726174]
[1746779306585,0.0024,103930.0,103920.0,0.90349423]
[1746779307283,0.1948083,103930.0,103920.0,0.90349423]
[1746779308287,0.0024,103930.0,103920.0,0.90349423]
[1746779308488,0.0024,103930.0,103920.0,1.05919308]
[1746779308689,0.0024,103930.0,103920.0,0.90349423]
[1746779308888,0.0024,103930.0,103920.0,1.05919308]
[1746779309192,0.0024,103930.0,103920.0,0.90349423]
[1746779309782,0.0034,103930.0,103920.0,0.90549423]
[1746779310392,0.1958083,103930.0,103920.0,0.90549423]
[1746779310596,0.1958083,103930.0,103920.0,0.90749423]
[1746779311287,0.0034,103930.0,103920.0,0.90749494]
[1746779311797,0.003,103940.0,103920.0,0.87076699]
[1746779312099,0.003,103940.0,103930.0,0.81120715]
[1746779312293,0.003,103940.0,103930.0,0.8375428]
[1746779312687,0.003,103940.0,103930.0,0.77806718]
[1746779312995,0.1953898,103940.0,103930.0,0.77806528]
[1746779313193,0.1953898,103940.0,103930.0,0.57726528]
[1746779313494,0.35108865,103940.0,103930.0,0.84184205]
[1746779313691,0.2640898,103940.0,103930.0,0.84184205]
[1746779313895,0.1953898,103940.0,103930.0,0.84184205]
[1746779314083,0.1953898,103940.0,103930.0,0.93805602]
[1746779314283,0.003,103940.0,103930.0,0.93805602]
[1746779314485,0.003,103940.0,103930.0,1.09375487]
[1746779314785,0.003,103940.0,103930.0,1.10575514]
[1746779315197,0.003,103940.0,103930.0,0.95005629]
[1746779315390,0.003,103940.0,103930.0,0.95105629]
[1746779316100,0.004,103940.0,103930.0,0.95305629]
[1746779316289,0.1963898,103940.0,103930.0,0.95305629]
[1746779316487,0.004,103940.0,103930.0,0.95305629]
[1746779317297,0.004,103940.0,103930.0,0.95305522]
[1746779317589,0.24305184,103950.0,103940.0,0.1923898]
[1746779317796,0.23583254,103950.0,103940.0,0.64642278]
[1746779317992,0.39153139,103950.0,103940.0,0.09323298]
[1746779318188,0.66533254,103950.0,103940.0,0.09323298]
[1746779318391,0.70063254,103950.0,103940.0,0.09323298]
[1746779318594,1.20253539,103950.0,103940.0,0.02633298]
[1746779318794,0.70063254,103950.0,103940.0,0.02633298]
[1746779318992,0.85633139,103950.0,103940.0,0.02633298]
[1746779319301,0.70163254,103950.0,103940.0,0.02733298]
[1746779319597,0.85733139,103950.0,103940.0,0.02733298]
[1746779319798,0.70163254,103950.0,103940.0,0.02733298]
[1746779320099,1.01733139,103950.0,103940.0,0.02733298]
[1746779320598,0.1924083,103930.0,103920.0,0.0336]
[1746779320800,0.9140083,103930.0,103920.0,0.0671]
[1746779321096,0.6521083,103930.0,103920.0,0.2595268]
[1746779321397,0.6521083,103930.0,103920.0,0.0671]
[1746779321595,0.80780715,103930.0,103920.0,0.0671]
[1746779321796,0.6521083,103930.0,103920.0,0.0701]
[1746779321995,0.80780715,103930.0,103920.0,0.003]
[1746779322196,0.1924268,103920.0,103910.0,0.22836706]
[1746779322392,0.1924453,103910.0,103900.0,0.24330966]
[1746779322596,0.81334415,103910.0,103900.0,0.24330966]
[1746779322897,0.81334415,103910.0,103890.0,0.59068771]
[1746779322898,0.1924639,103900.0,103890.0,0.59068771]
[1746779323090,0.2615639,103900.0,103890.0,0.59068771]
[1746779323399,0.2615639,103900.0,103890.0,0.19568771]
[1746779323400,0.77806275,103900.0,103890.0,0.19568771]
[1746779323601,0.1924824,103890.0,103880.0,0.48440575]
[1746779323806,0.2615824,103890.0,103880.0,0.48440575]
[1746779324300,0.4215824,103890.0,103880.0,0.48440575]
[1746779324796,0.195,103890.0,103880.0,0.6401046]
[1746779325002,0.16,103890.0,103880.0,0.94146603]
[1746779325206,0.0346,103900.0,103890.0,0.1924824]
[1746779325406,0.2320639,103900.0,103890.0,0.2277824]
[1746779325595,0.2320639,103900.0,103890.0,0.0692]
[1746779325790,0.2673639,103900.0,103890.0,0.0692]
[1746779325998,0.2673639,103900.0,103890.0,0.2616824]
[1746779326201,0.4223639,103900.0,103890.0,0.41638125]
[1746779326404,0.161,103900.0,103890.0,0.2606824]
[1746779326610,0.161,103900.0,103890.0,0.96143227]
[1746779326799,0.161,103900.0,103890.0,1.16653342]
[1746779326997,0.161,103900.0,103890.0,1.32223227]
[1746779327305,0.004,103900.0,103890.0,1.48323227]
[1746779327496,0.004,103900.0,103890.0,1.32753342]
[1746779327898,0.2405182,103930.0,103920.0,0.1924268]
[1746779328103,0.0657,103930.0,103920.0,0.5532268]
[1746779328303,0.21445357,103930.0,103920.0,0.6210268]
[1746779328505,0.21445357,103930.0,103920.0,0.2602268]
[1746779328798,0.21445357,103930.0,103920.0,0.6210268]
[1746779329002,0.21445357,103930.0,103920.0,0.0678]
[1746779329003,0.24655357,103930.0,103920.0,0.0678]
[1746779329198,0.60735357,103930.0,103920.0,0.2278]
[1746779329396,0.24655357,103930.0,103920.0,0.5916]
[1746779329802,0.24655357,103930.0,103920.0,0.1957]
[1746779330000,0.24755357,103930.0,103920.0,0.1957]
[1746779330198,0.24755357,103930.0,103920.0,0.0357]
[1746779330803,0.24755357,103930.0,103920.0,0.2251268]
[1746779331001,0.24755357,103930.0,103920.0,0.0691]
[1746779331200,0.24755357,103930.0,103920.0,0.0337]
[1746779331604,0.24755357,103930.0,103920.0,0.0327]
[1746779332004,0.24855357,103930.0,103920.0,0.0327]
[1746779332493,0.24855357,103930.0,103920.0,0.04398395]
[1746779332697,0.24855357,103930.0,103920.0,0.05902921]
[1746779333294,0.24855357,103930.0,103920.0,0.25145601]
[1746779333801,0.24855357,103930.0,103920.0,0.64735601]
[1746779334509,0.05614527,103930.0,103920.0,0.80305486]
[1746779334695,0.02304527,103930.0,103920.0,0.64735601]
[1746779335006,0.001,103930.0,103920.0,0.79277091]
[1746779335199,0.001,103930.0,103920.0,0.93787775]
[1746779335394,0.0024,103940.0,103930.0,0.1924083]
[1746779335599,0.0024,103940.0,103930.0,0.79018961]
[1746779335800,0.2286898,103940.0,103930.0,0.64953602]
[1746779336203,0.0701,103940.0,103930.0,0.96523487]
[1746779336506,0.0363,103940.0,103930.0,0.96523487]
[1746779336704,0.0363,103940.0,103930.0,0.95395241]
[1746779336705,0.2286898,103940.0,103930.0,0.95395241]
[1746779336902,0.0024,103940.0,103930.0,1.06144761]
[1746779337111,0.001,103950.0,103940.0,0.1923898]
[1746779337302,0.001,103950.0,103940.0,0.82346988]
[1746779337503,0.001,103950.0,103940.0,0.66777103]
[1746779337707,0.001,103950.0,103940.0,0.763985]
[1746779338003,0.001,103950.0,103940.0,0.93472911]
[1746779338204,0.003,103970.0,103960.0,0.1923528]
[1746779338396,0.003,103970.0,103960.0,0.95863215]
[1746779338600,0.003,103970.0,103960.0,1.148531]
[1746779338800,0.003,103970.0,103960.0,1.08903687]
[1746779339004,0.003,103970.0,103960.0,1.10408213]
[1746779339211,0.1953343,103970.0,103960.0,1.26408213]
[1746779339403,0.2013343,103970.0,103960.0,1.26508213]
[1746779339599,0.2350343,103970.0,103960.0,0.80807741]
[1746779339905,0.2684343,103970.0,103960.0,0.80807741]
[1746779340098,0.2684343,103970.0,103960.0,0.64807741]
[1746779340298,0.2330343,103970.0,103960.0,0.64707741]
[1746779340512,0.1993343,103970.0,103960.0,0.64707741]
[1746779341104,0.2711343,103970.0,103960.0,0.64707741]
[1746779341305,0.0788,103970.0,103960.0,0.64707741]
[1746779341599,0.012,103970.0,103960.0,0.64707699]
[1746779342011,0.005,103970.0,103960.0,0.7432632]
[1746779342209,0.00118769,103970.0,103960.0,0.9032632]
[1746779342410,0.63031388,103990.0,103980.0,0.1923158]
[1746779342714,0.001,103990.0,103980.0,0.57943999]
[1746779342917,0.001,103990.0,103980.0,0.64893879]
[1746779343216,0.001,103990.0,103980.0,0.80893879]
[1746779343513,0.001,103990.0,103980.0,0.96463764]
[1746779343713,0.001,103990.0,103980.0,0.82319711]
[1746779344112,0.001,103990.0,103980.0,0.66319711]
[1746779344316,0.001,103990.0,103980.0,0.66319505]
[1746779344516,0.001,103990.0,103980.0,0.75936276]
[1746779344816,0.002,103990.0,103980.0,0.75936276]
[1746779345308,0.105,104000.0,103990.0,0.1922973]
[1746779345511,0.105,104000.0,103990.0,0.63387297]
[1746779346010,0.105,104000.0,103990.0,0.74508594]
[1746779346213,0.105,104000.0,103990.0,0.90508602]
[1746779346416,0.105,104000.0,103990.0,1.06225339]
[1746779346714,0.105,104000.0,103990.0,1.47815339]
[1746779346914,0.105,104000.0,103990.0,1.32745454]
[1746779348005,0.105,104000.0,103990.0,1.3274544]
[1746779349116,0.2972788,104000.0,103990.0,1.3274544]
[1746779349612,0.2972788,104000.0,103990.0,1.23128669]
[1746779349812,0.1384,104000.0,103990.0,1.48314427]
[1746779350012,0.105,104000.0,103990.0,1.32744542]
[1746779350212,0.2972788,104000.0,103990.0,1.32744542]
[1746779350411,0.2972788,104000.0,103990.0,0.96664542]
[1746779350607,0.3306788,104000.0,103990.0,0.67818966]
[1746779350913,0.3641788,104000.0,103990.0,0.87048696]
[1746779351116,0.3641788,104000.0,103990.0,0.71048696]
[1746779351316,0.3306788,104000.0,103990.0,0.71048716]
[1746779351511,0.3641788,104000.0,103990.0,0.7104872]
[1746779351819,0.3641788,104000.0,103990.0,0.27954194]
[1746779352006,0.3641788,104000.0,103990.0,0.08724464]
[1746779352213,0.8703388,104000.0,103990.0,0.01774464]
[1746779352510,0.9171788,104000.0,103990.0,0.01774464]
[1746779352704,0.9171788,104000.0,103990.0,0.01774595]
[1746779352915,0.9171788,104000.0,103990.0,0.27784325]
[1746779353108,0.7571788,104000.0,103990.0,0.27784272]
[1746779354116,0.9171788,104000.0,103990.0,0.43354157]
[1746779354311,0.8849788,104000.0,103990.0,0.27784272]
[1746779354615,0.8180788,104000.0,103990.0,0.27784272]
[1746779354813,0.5266788,104000.0,103990.0,0.27784272]
[1746779355213,0.3320788,104000.0,103990.0,0.63864272]
[1746779355605,0.105,104000.0,103990.0,0.79434157]
[1746779355817,0.105,104000.0,103990.0,0.89050003]
[1746779356117,0.105,104000.0,103990.0,0.89479992]
[1746779356516,0.2972788,104000.0,103990.0,0.89479992]
[1746779356818,0.2972788,104000.0,103990.0,0.53399992]
[1746779357114,0.3325788,104000.0,103990.0,0.37400043]
[1746779357315,0.3325788,104000.0,103990.0,0.52969928]
[1746779357520,0.3325788,104000.0,103990.0,0.52969946]
[1746779357711,0.1403,104000.0,103990.0,0.52969946]
[1746779357912,0.3325788,104000.0,103990.0,0.37400061]
[1746779358106,0.3325788,104000.0,103990.0,0.68969946]
[1746779358312,0.105,104000.0,103990.0,1.03922313]
[1746779358714,0.105,104000.0,103990.0,0.88352428]
[1746779358914,0.105,104000.0,103990.0,1.03922313]
[1746779359224,0.105,104000.0,103990.0,0.88352428]
[1746779359424,0.105,104000.0,103990.0,0.89480055]
[1746779359610,0.105,104000.0,103990.0,0.6896994]
[1746779359918,0.2972788,104000.0,103990.0,1.0504994]
[1746779360314,0.2972788,104000.0,103990.0,0.89480055]
[1746779360512,0.105,104000.0,103990.0,0.89480055]
[1746779360814,0.6580788,104000.0,103990.0,0.94990055]
[1746779361016,0.7290788,104000.0,103990.0,0.21204479]
[1746779361214,0.7290788,104000.0,103990.0,0.05204479]
[1746779361418,0.7290788,104000.0,103990.0,0.26715209]
[1746779361619,0.7290788,104000.0,103990.0,0.30155209]
[1746779362323,0.3682788,104000.0,103990.0,0.30155209]
[1746779362524,0.7300788,104000.0,103990.0,0.29655209]
[1746779362718,0.3712788,104000.0,103990.0,0.29655209]
[1746779363119,0.1452,104000.0,103990.0,0.5484094]
[1746779363328,0.106,104000.0,103990.0,0.5484094]
[1746779363527,0.106,104000.0,103990.0,0.9092094]
[1746779364226,0.106,104000.0,103990.0,1.0692094]
[1746779364526,0.105,104000.0,103990.0,0.92854443]
[1746779364721,0.105,104000.0,103990.0,1.08424328]
[1746779365126,0.105,104000.0,103990.0,0.92854443]
[1746779365429,0.105,104000.0,103990.0,1.08624328]
[1746779365628,0.105,104000.0,103990.0,1.08824328]
[1746779365823,0.0054,104010.0,104000.0,0.1922788]
[1746779366027,0.0054,104010.0,104000.0,0.68758895]
[1746779366227,0.0054,104010.0,104000.0,1.0032878]
[1746779366527,0.0054,104010.0,104000.0,0.94520669]
[1746779366729,0.001,104020.0,104010.0,0.1922603]
[1746779366929,0.001,104020.0,104010.0,0.27663657]
[1746779367130,0.001,104020.0,104010.0,0.29167045]
[1746779367332,0.001,104020.0,104010.0,0.38781042]
[1746779367524,0.1932418,104020.0,104010.0,0.75007894]
[1746779367727,0.1932418,104020.0,104010.0,0.38927894]
[1746779367927,0.1932418,104020.0,104010.0,0.75007894]
[1746779368524,0.1922418,104020.0,104010.0,0.75007894]
[1746779368730,0.18362114,104020.0,104010.0,0.75007894]
[1746779368937,0.18362114,104020.0,104010.0,0.75007614]
[1746779369637,0.57982114,104020.0,104010.0,0.02977587]
[1746779369840,0.61632114,104020.0,104010.0,0.03077587]
[1746779370136,0.77632114,104020.0,104010.0,0.03077587]
[1746779370838,1.02815999,104020.0,104010.0,0.03077587]
[1746779371028,1.02815999,104020.0,103990.0,0.30654559]
[1746779371029,1.2983003,104020.0,103990.0,0.30654559]
[1746779371224,0.1923158,103980.0,103970.0,0.25064559]
[1746779371429,0.9139158,103980.0,103970.0,0.22522146]
[1746779371639,0.9507158,103980.0,103970.0,0.22522146]
[1746779371846,0.9507158,103980.0,103970.0,0.26092146]
[1746779371847,1.10641465,103980.0,103970.0,0.26092146]
[1746779372042,1.10641465,103980.0,103970.0,0.22522146]
[1746779372250,1.1107158,103980.0,103970.0,0.22522146]
[1746779372637,1.26741465,103980.0,103970.0,0.22522146]
[1746779373037,0.1923343,103970.0,103960.0,0.00100995]
[1746779373242,0.1923713,103950.0,103940.0,0.0361]
[1746779373541,0.1923713,103950.0,103930.0,0.39851029]
[1746779373542,0.1923898,103940.0,103930.0,9e-08]
[1746779373749,0.74368865,103940.0,103930.0,9e-08]
[1746779373936,0.5879898,103940.0,103930.0,9e-08]
[1746779374134,0.7479898,103940.0,103930.0,9e-08]
[1746779374337,0.7764898,103940.0,103930.0,9e-08]
[1746779374537,0.93218865,103940.0,103930.0,9e-08]
[1746779374743,0.7764898,103940.0,103930.0,9e-08]
[1746779375048,1.04181196,103940.0,103930.0,9e-08]
[1746779375539,0.88611311,103940.0,103930.0,9e-08]
[1746779376746,0.1924268,103920.0,103910.0,0.00284695]
[1746779376948,0.1924453,103910.0,103900.0,0.09715305]
[1746779377142,0.93404415,103910.0,103900.0,0.09715305]
[1746779377447,0.8745853,103910.0,103900.0,5e-08]
[1746779377648,0.1925009,103880.0,103870.0,0.0705]
[1746779378043,0.77409975,103880.0,103870.0,0.0343]
[1746779378244,0.77409975,103880.0,103870.0,0.16]
[1746779378434,0.1925194,103870.0,103860.0,0.00101097]
[1746779378743,0.192538,103860.0,103850.0,0.03231097]
[1746779378944,0.1925751,103840.0,103830.0,0.28876939]
[1746779379143,0.1925751,103840.0,103830.0,0.43732119]
[1746779379144,0.5533751,103840.0,103830.0,0.43732119]
[1746779379641,0.3608,103850.0,103840.0,0.1925751]
[1746779379850,0.3608,103850.0,103840.0,0.2292751]
[1746779380037,0.3951,103860.0,103840.0,0.3975]
[1746779380244,0.3608,103870.0,103860.0,0.192538]
[1746779380245,0.5876194,103870.0,103860.0,0.192538]
[1746779380642,0.5876194,103870.0,103860.0,0.0367]
[1746779381042,0.5876194,103870.0,103860.0,0.1967]
[1746779381344,0.5876194,103870.0,103860.0,0.386238]
[1746779381541,0.5876194,103870.0,103860.0,0.1957]
[1746779381741,0.58473148,103870.0,103860.0,0.1957]
[1746779381944,0.61523148,103870.0,103860.0,0.2295]
[1746779382247,0.61523148,103870.0,103860.0,0.0695]
[1746779382437,0.61523148,103870.0,103860.0,0.0358]
[1746779382642,0.77093033,103870.0,103860.0,0.0358]
[1746779382843,0.77193033,103870.0,103860.0,0.002]
[1746779383151,0.61623148,103870.0,103860.0,0.0170582]
[1746779383448,0.77193033,103870.0,103860.0,0.002]
[1746779383946,0.76904338,103870.0,103860.0,0.002]
[1746779384147,0.192538,103860.0,103850.0,0.0347]
[1746779384352,0.619238,103860.0,103850.0,0.0347]
[1746779384944,0.77493685,103860.0,103850.0,0.04975857]
[1746779385139,0.619238,103860.0,103850.0,0.04975857]
[1746779385447,0.62883421,103860.0,103850.0,0.04975857]
[1746779385747,0.619238,103860.0,103850.0,0.05175857]
[1746779386345,0.619238,103860.0,103850.0,0.04975857]
[1746779386545,0.77204893,103860.0,103850.0,0.04975857]
[1746779386946,0.77204893,103860.0,103850.0,0.01805857]
[1746779387446,0.1925565,103850.0,103840.0,0.00288889]
[1746779387649,0.1925936,103830.0,103820.0,0.00101131]
[1746779387854,0.1926122,103820.0,103810.0,0.00288987]
[1746779388042,0.78513131,103820.0,103810.0,0.00288987]
[1746779388351,0.1926307,103810.0,103800.0,0.1]
[1746779388558,0.6212307,103810.0,103800.0,0.1]
[1746779388855,0.87326555,103810.0,103800.0,0.097]
[1746779389048,1.0289644,103810.0,103800.0,0.0401964]
[1746779389249,0.18976235,103800.0,103790.0,0.15929062]
[1746779389448,0.62516235,103800.0,103790.0,0.06579062]
[1746779389649,1.03290405,103800.0,103790.0,0.06579062]
[1746779389850,0.8772052,103800.0,103790.0,0.02674262]
[1746779390047,0.8772052,103800.0,103790.0,0.0218073]
[1746779390256,0.1926864,103780.0,103770.0,0.45553638]
[1746779390456,0.9612481,103780.0,103770.0,0.34139247]
[1746779390755,0.1927235,103760.0,103750.0,0.36774394]
[1746779390953,0.70922235,103760.0,103750.0,0.36774394]
[1746779391153,0.5591,103760.0,103750.0,0.14426065]
[1746779391359,0.8963735,103760.0,103750.0,0.14426065]
[1746779391556,0.9927535,103760.0,103750.0,0.14426065]
[1746779391752,0.97633303,103760.0,103750.0,0.14126065]
[1746779391950,0.8177482,103760.0,103750.0,0.14126065]
[1746779392148,0.4139332,103760.0,103750.0,0.29826065]
[1746779392353,0.55263947,103760.0,103750.0,0.37186065]
[1746779392762,1.02631717,103760.0,103750.0,0.21213115]
[1746779393055,1.02631717,103760.0,103720.0,0.00101233]
[1746779393056,0.1927793,103730.0,103720.0,0.00101233]
[1746779393246,1.07007815,103730.0,103720.0,3e-08]
[1746779393556,0.1928165,103710.0,103700.0,0.49183906]
[1746779393758,1.07994612,103710.0,103700.0,0.49183906]
[1746779393953,1.07994612,103710.0,103700.0,0.52743906]
[1746779393954,0.99014727,103710.0,103700.0,0.52743906]
[1746779394146,1.24227412,103710.0,103700.0,0.65183906]
[1746779394345,1.24227412,103710.0,103700.0,0.16]
[1746779394654,1.24227412,103710.0,103650.0,0.0373]
[1746779394655,0.1929095,103660.0,103650.0,0.0373]
[1746779394955,0.55082644,103660.0,103650.0,0.0343]
[1746779395155,0.4090189,103680.0,103650.0,1.04622866]
[1746779395355,0.1929095,103660.0,103650.0,0.29072736]
[1746779395657,0.5537095,103660.0,103650.0,0.16]
[1746779395858,0.85696642,103680.0,103660.0,0.0482256]
[1746779396053,0.3608,103670.0,103650.0,0.87235199]
[1746779396250,0.1929095,103660.0,103650.0,0.5238]
[1746779396554,0.76055642,103660.0,103650.0,0.163]
[1746779396854,0.3608,103680.0,103650.0,1.12887522]
[1746779397048,0.3608,103700.0,103690.0,0.1928536]
[1746779397355,0.3608,103700.0,103680.0,0.3608]
[1746779397356,0.1928536,103690.0,103680.0,0.3608]
[1746779397655,0.5536536,103690.0,103680.0,0.1928722]
[1746779397860,0.4090139,103690.0,103670.0,0.2642778]
[1746779398158,0.64720288,103690.0,103680.0,0.0371]
[1746779398454,0.84369846,103710.0,103690.0,0.1928536]
[1746779398655,0.84081107,103710.0,103700.0,0.0361]
[1746779398857,0.55158157,103710.0,103700.0,0.225935]
[1746779399063,0.54870335,103710.0,103700.0,0.225935]
[1746779399358,0.01300335,103710.0,103700.0,0.84318561]
[1746779399762,0.01600335,103710.0,103700.0,0.84318561]
[1746779399960,0.00144795,103720.0,103710.0,0.1928165]
[1746779400162,0.00144795,103720.0,103710.0,0.7136165]
[1746779400656,0.19424585,103720.0,103710.0,0.44923456]
[1746779400864,0.19424585,103720.0,103710.0,0.25641806]
[1746779401160,0.55504585,103720.0,103710.0,0.16]
[1746779401362,0.19436859,103720.0,103710.0,0.16]